Department Family,Entity,Date,Expense type,Expense area,Supplier,Transaction number,Amount
DBT,ACAS,19/05/2023,OCCUPATIONAL HEALTH SERVICE,F&G,FLEXIFORM BUSINESS FURNITURE LTD,POIN1617,898.8
DBT,ACAS,03/07/2023,AGENCY STAFF,ODHR,MICHAEL PAGE,POIN1618,931.6
DBT,ACAS,29/06/2023,CONTRACTOR OFF-PAYROLL IN IR35,DDAT,ALEXANDER MANN SOLUTIONS LTD,POIN1619,"8,190.72"
DBT,ACAS,29/06/2023,SOFTWARE & LICENCES,DDAT,GLASSTAP LIMITED,POIN1620,"10,800.00"
DBT,ACAS,30/06/2023,PROFESSIONAL FEES,DDAT,VERSION 1 SOLUTIONS LTD,POIN1621,"6,490.00"
DBT,ACAS,30/06/2023,PROFESSIONAL FEES,DDAT,VERSION 1 SOLUTIONS LTD,POIN1621,"6,490.00"
DBT,ACAS,03/07/2023,MEMBERSHIP FEES,DDAT,BCS (BRITISH COMPUTER SOCIETY ),POIN1623,"8,940.00"
DBT,ACAS,06/07/2023,AGENCY STAFF,ODHR,ALEXANDER MANN SOLUTIONS LTD,POIN1624,"4,003.44"
DBT,ACAS,06/07/2023,PROFESSIONAL FEES,ADVICE,SIGNWISE INTERPRETING,POIN1625,320
DBT,ACAS,06/07/2023,EXTERNAL LEARNING - CSL,ODHR,KPMG LLP,POIN1626,"1,647.60"
DBT,ACAS,05/07/2023,EXTERNAL LEARNING - CSL,ODHR,KPMG LLP,POIN1627,"1,383.60"
DBT,ACAS,30/06/2023,EXTERNAL LEARNING - CSL,ODHR,ERNST & YOUNG LLP,POIN1628,"1,276.80"
DBT,ACAS,30/06/2023,EXTERNAL LEARNING - CSL,ODHR,ERNST & YOUNG LLP,POIN1628,638.4
DBT,ACAS,26/06/2023,AGENCY STAFF,ODHR,MICHAEL PAGE,POIN1629,"1,164.49"
DBT,ACAS,30/06/2023,ACAS PUBLICATIONS,CAC,HH GLOBAL,POIN1630,"3,028.99"
DBT,ACAS,30/06/2023,ACAS PUBLICATIONS,CAC,HH GLOBAL,POIN1630,303.69
DBT,ACAS,11/07/2023,AGENCY STAFF,ODHR,MICHAEL PAGE,POIN1631,"1,068.12"
DBT,ACAS,23/06/2023,TRAINERS & GUEST SPEAKERS,ADVICE,THE TALLENTS PARTNERSHIP,POIN1632,"11,940.00"
DBT,ACAS,19/06/2023,GOVT SOLICITORS FEES,CO,GOVERNMENT LEGAL DEPARTMENT,POIN1633,700.8
DBT,ACAS,03/07/2023,AGENCY STAFF,STRATEGY,MORGAN MCKINLEY GROUP LTD,POIN1634,"2,266.02"
DBT,ACAS,03/07/2023,AGENCY STAFF,STRATEGY,MORGAN MCKINLEY GROUP LTD,POIN1634,"2,266.02"
DBT,ACAS,03/07/2023,AGENCY STAFF,STRATEGY,MORGAN MCKINLEY GROUP LTD,POIN1634,"1,888.36"
DBT,ACAS,06/07/2023,SOFTWARE & LICENCES,DDAT,DMARCIAN EUROPE BV,POIN1635,"2,044.32"
DBT,ACAS,12/07/2023,CONTRACTOR OFF-PAYROLL IN IR35,STRATEGY,ALEXANDER MANN SOLUTIONS LTD,POIN1636,"7,654.55"
DBT,ACAS,12/07/2023,CONTRACTOR OFF-PAYROLL IN IR35,STRATEGY,ALEXANDER MANN SOLUTIONS LTD,POIN1636,"-7,654.55"
DBT,ACAS,30/06/2023,RECORDS STORAGE,DDAT,RESTORE RECORDS MANAGEMENT,POIN1637,272.02
DBT,ACAS,30/06/2023,RECORDS STORAGE,DDAT,RESTORE RECORDS MANAGEMENT,POIN1637,22.25
DBT,ACAS,13/04/2023,MANAGED SERVICE Off-PAYROLL WK,ADVICE,THE PUBLIC SERVICE CONSULTANTS LIMITED,POIN1638,"60,000.00"
DBT,ACAS,07/07/2023,COMPUTER HARDWARE,DDAT,ACS SYSTEMS UK LTD,POIN1639,583.2
DBT,ACAS,07/07/2023,COMPUTER HARDWARE,DDAT,ACS SYSTEMS UK LTD,POIN1639,64.8
DBT,ACAS,07/07/2023,COURIERS,DDAT,ACS SYSTEMS UK LTD,POIN1639,"6,104.57"
DBT,ACAS,07/07/2023,COURIERS,DDAT,ACS SYSTEMS UK LTD,POIN1639,294
DBT,ACAS,07/07/2023,PROFESSIONAL FEES,DDAT,ACS SYSTEMS UK LTD,POIN1639,456
DBT,ACAS,07/07/2023,SYSTEM/EQUIPMENT MAINTENANCE,DDAT,ACS SYSTEMS UK LTD,POIN1639,52.08
DBT,ACAS,07/07/2023,COMPUTER HARDWARE,DDAT,ACS SYSTEMS UK LTD,POIN1639,32.4
DBT,ACAS,07/07/2023,COMPUTER HARDWARE,DDAT,ACS SYSTEMS UK LTD,POIN1639,3.6
DBT,ACAS,07/07/2023,PROFESSIONAL FEES,DDAT,ACS SYSTEMS UK LTD,POIN1639,171
DBT,ACAS,07/07/2023,COURIERS,DDAT,ACS SYSTEMS UK LTD,POIN1639,"4,454.00"
DBT,ACAS,06/07/2023,OCCUPATIONAL HEALTH SERVICE,F&G,FLEXIFORM BUSINESS FURNITURE LTD,POIN1640,928.2
DBT,ACAS,06/07/2023,OCCUPATIONAL HEALTH SERVICE,F&G,FLEXIFORM BUSINESS FURNITURE LTD,POIN1641,"1,101.66"
DBT,ACAS,30/06/2023,PROFESSIONAL FEES,DDAT,TISSKI LTD,POIN1642,"22,050.00"
DBT,ACAS,08/06/2023,OCCUPATIONAL HEALTH SERVICE,F&G,FLEXIFORM BUSINESS FURNITURE LTD,POIN1643,578.4
DBT,ACAS,14/07/2023,AGENCY STAFF,STRATEGY,MORGAN MCKINLEY GROUP LTD,POIN1644,"4,154.38"
DBT,ACAS,14/07/2023,AGENCY STAFF,STRATEGY,MORGAN MCKINLEY GROUP LTD,POIN1644,"-4,154.38"
DBT,ACAS,14/07/2023,PROFESSIONAL FEES,F&G,UK SHARED BUSINESS SERVICES LTD,POIN1645,"1,300.00"
DBT,ACAS,30/06/2023,PROFESSIONAL FEES,DDAT,TISSKI LTD,POIN1647,"18,000.00"
DBT,ACAS,30/06/2023,PROFESSIONAL FEES,DDAT,TISSKI LTD,POIN1648,"39,150.00"
DBT,ACAS,17/07/2023,SOFTWARE & LICENCES,F&G,MHR INTERNATIONAL UK LTD,POIN1649,"3,000.00"
DBT,ACAS,17/07/2023,SOFTWARE & LICENCES,F&G,MHR INTERNATIONAL UK LTD,POIN1649,"5,400.00"
DBT,ACAS,18/07/2023,LEARNING RESOURCE MATERIALS,ODHR,ERNST & YOUNG LLP,POIN1651,"1,276.80"
DBT,ACAS,18/07/2023,LEARNING RESOURCE MATERIALS,ODHR,ERNST & YOUNG LLP,POIN1652,638.4
DBT,ACAS,17/07/2023,PROFESSIONAL FEES,DISPUTE,LANGUAGE EMPIRE LTD,POIN1653,347.4
DBT,ACAS,17/07/2023,PROFESSIONAL FEES,ADVICE,LANGUAGE EMPIRE LTD,POIN1653,180
DBT,ACAS,20/07/2023,PROFESSIONAL FEES,DISPUTE,LANGUAGE EMPIRE LTD,POIN1654,748.15
DBT,ACAS,18/07/2023,PROFESSIONAL FEES,F&G,GOVERNMENT PROPERTY AGENCY,POIN1656,360
DBT,ACAS,18/07/2023,PROFESSIONAL FEES,F&G,GOVERNMENT PROPERTY AGENCY,POIN1657,360
DBT,ACAS,18/07/2023,PROFESSIONAL FEES,F&G,GOVERNMENT PROPERTY AGENCY,POIN1658,360
DBT,ACAS,16/07/2023,GOVT SOLICITORS FEES,CO,GOVERNMENT LEGAL DEPARTMENT,POIN1659,570.24
DBT,ACAS,24/07/2023,EXTERNAL LEARNING,ODHR,HAPPY COMPUTERS LIMITED,POIN1660,"1,800.00"
DBT,ACAS,20/07/2023,EVALUATION OF OPS ACTIVITIES,STRATEGY,I F F RESEARCH,POIN1661,"9,600.00"
DBT,ACAS,27/06/2023,OCCUPATIONAL HEALTH SERVICE,F&G,FLEXIFORM BUSINESS FURNITURE LTD,POIN1662,327.82
DBT,ACAS,20/07/2023,ACAS PUBLICATIONS,F&G,HH GLOBAL,POIN1663,"5,258.73"
DBT,ACAS,20/07/2023,CONTRACTOR OFF-PAYROLL IN IR35,ODHR,MICHAEL PAGE,POIN1664,"4,032.00"
DBT,ACAS,17/07/2023,PROFESSIONAL FEES,DDAT,VERSION 1 SOLUTIONS LTD,POIN1665,"6,490.00"
DBT,ACAS,25/07/2023,AGENCY STAFF,ODHR,MICHAEL PAGE,POIN1666,"1,156.46"
DBT,ACAS,29/06/2023,OCCUPATIONAL HEALTH SERVICE,F&G,FLEXIFORM BUSINESS FURNITURE LTD,POIN1667,544.85
DBT,ACAS,26/07/2023,SOFTWARE & LICENCES,DDAT,ATOS IT SERVICES UK LIMITED,POIN1668,"2,010.31"
DBT,ACAS,26/07/2023,SOFTWARE & LICENCES,DDAT,ATOS IT SERVICES UK LIMITED,POIN1668,"2,406.00"
DBT,ACAS,26/07/2023,TELEPHONES,DDAT,ATOS IT SERVICES UK LIMITED,POIN1668,92.5
DBT,ACAS,26/07/2023,SOFTWARE & LICENCES,DDAT,ATOS IT SERVICES UK LIMITED,POIN1668,"10,190.21"
DBT,ACAS,26/07/2023,TELEPHONES,DDAT,ATOS IT SERVICES UK LIMITED,POIN1668,39.79
DBT,ACAS,26/07/2023,PROFESSIONAL FEES,DDAT,ATOS IT SERVICES UK LIMITED,POIN1669,"4,930.79"
DBT,ACAS,30/06/2023,PROFESSIONAL FEES,DISPUTE,LANGUAGE EMPIRE LTD,POIN1670,"3,028.51"
DBT,ACAS,30/06/2023,PROFESSIONAL FEES,ADVICE,LANGUAGE EMPIRE LTD,POIN1670,"3,028.51"
DBT,ACAS,26/07/2023,PROFFESIONAL/SPECIALIST ADVICE,ODHR,MHR INTERNATIONAL UK LTD,POIN1671,"4,948.00"
DBT,ACAS,26/07/2023,PROFFESIONAL/SPECIALIST ADVICE,ODHR,MHR INTERNATIONAL UK LTD,POIN1671,"1,208.00"
DBT,ACAS,29/06/2023,AGENCY STAFF,DISPUTE,ALEXANDER MANN SOLUTIONS LTD,PINV1852,645.58
DBT,ACAS,30/06/2023,PROFESSIONAL FEES,DISPUTE,WYSER LTD,PINV1853,"85,629.60"
DBT,ACAS,30/06/2023,OCCUPATIONAL HEALTH SERVICE,ODHR,TP HEALTH LTD,PINV1854,778.8
DBT,ACAS,30/06/2023,PUBLIC TRANSPORT & PARKING,ADVICE,CORPORATE TRAVEL MANAGEMENTLIMITED,PINV1855,59.1
DBT,ACAS,30/06/2023,PUBLIC TRANSPORT & PARKING,ADVICE,CORPORATE TRAVEL MANAGEMENTLIMITED,PINV1855,43.7
DBT,ACAS,30/06/2023,PUBLIC TRANSPORT & PARKING,ADVICE,CORPORATE TRAVEL MANAGEMENTLIMITED,PINV1855,43.7
DBT,ACAS,30/06/2023,PUBLIC TRANSPORT & PARKING,ADVICE,CORPORATE TRAVEL MANAGEMENTLIMITED,PINV1855,34
DBT,ACAS,30/06/2023,PUBLIC TRANSPORT & PARKING,ADVICE,CORPORATE TRAVEL MANAGEMENTLIMITED,PINV1855,81.6
DBT,ACAS,30/06/2023,PUBLIC TRANSPORT & PARKING,ADVICE,CORPORATE TRAVEL MANAGEMENTLIMITED,PINV1855,103
DBT,ACAS,30/06/2023,PUBLIC TRANSPORT & PARKING,F&G,CORPORATE TRAVEL MANAGEMENTLIMITED,PINV1855,113.5
DBT,ACAS,30/06/2023,PUBLIC TRANSPORT & PARKING,F&G,CORPORATE TRAVEL MANAGEMENTLIMITED,PINV1855,48.9
DBT,ACAS,30/06/2023,PUBLIC TRANSPORT & PARKING,F&G,CORPORATE TRAVEL MANAGEMENTLIMITED,PINV1855,58
DBT,ACAS,30/06/2023,PUBLIC TRANSPORT & PARKING,F&G,CORPORATE TRAVEL MANAGEMENTLIMITED,PINV1855,46
DBT,ACAS,30/06/2023,PUBLIC TRANSPORT & PARKING,ADVICE,CORPORATE TRAVEL MANAGEMENTLIMITED,PINV1855,81.6
DBT,ACAS,30/06/2023,PUBLIC TRANSPORT & PARKING,ODHR,CORPORATE TRAVEL MANAGEMENTLIMITED,PINV1855,30.35
DBT,ACAS,30/06/2023,PUBLIC TRANSPORT & PARKING,F&G,CORPORATE TRAVEL MANAGEMENTLIMITED,PINV1855,128
DBT,ACAS,30/06/2023,PUBLIC TRANSPORT & PARKING,ADVICE,CORPORATE TRAVEL MANAGEMENTLIMITED,PINV1855,106.2
DBT,ACAS,30/06/2023,PUBLIC TRANSPORT & PARKING,ADVICE,CORPORATE TRAVEL MANAGEMENTLIMITED,PINV1855,25
DBT,ACAS,30/06/2023,PUBLIC TRANSPORT & PARKING,F&G,CORPORATE TRAVEL MANAGEMENTLIMITED,PINV1855,189
DBT,ACAS,30/06/2023,PUBLIC TRANSPORT & PARKING,ODHR,CORPORATE TRAVEL MANAGEMENTLIMITED,PINV1855,25.3
DBT,ACAS,30/06/2023,PUBLIC TRANSPORT & PARKING,F&G,CORPORATE TRAVEL MANAGEMENTLIMITED,PINV1855,214.5
DBT,ACAS,30/06/2023,PUBLIC TRANSPORT & PARKING,ODHR,CORPORATE TRAVEL MANAGEMENTLIMITED,PINV1855,44.6
DBT,ACAS,30/06/2023,PUBLIC TRANSPORT & PARKING,ODHR,CORPORATE TRAVEL MANAGEMENTLIMITED,PINV1855,136
DBT,ACAS,30/06/2023,PUBLIC TRANSPORT & PARKING,F&G,CORPORATE TRAVEL MANAGEMENTLIMITED,PINV1855,25.3
DBT,ACAS,30/06/2023,PUBLIC TRANSPORT & PARKING,DISPUTE,CORPORATE TRAVEL MANAGEMENTLIMITED,PINV1855,126.1
DBT,ACAS,30/06/2023,HOTEL EXPENSES,ADVICE,CORPORATE TRAVEL MANAGEMENTLIMITED,PINV1855,63.33
DBT,ACAS,30/06/2023,HOTEL EXPENSES,ADVICE,CORPORATE TRAVEL MANAGEMENTLIMITED,PINV1855,63.33
DBT,ACAS,30/06/2023,PUBLIC TRANSPORT & PARKING,ADVICE,CORPORATE TRAVEL MANAGEMENTLIMITED,PINV1855,97.1
DBT,ACAS,30/06/2023,PUBLIC TRANSPORT & PARKING,ADVICE,CORPORATE TRAVEL MANAGEMENTLIMITED,PINV1855,116.3
DBT,ACAS,30/06/2023,PUBLIC TRANSPORT & PARKING,F&G,CORPORATE TRAVEL MANAGEMENTLIMITED,PINV1855,194.8
DBT,ACAS,30/06/2023,PUBLIC TRANSPORT & PARKING,DISPUTE,CORPORATE TRAVEL MANAGEMENTLIMITED,PINV1855,48.9
DBT,ACAS,30/06/2023,PUBLIC TRANSPORT & PARKING,DDAT,CORPORATE TRAVEL MANAGEMENTLIMITED,PINV1855,46
DBT,ACAS,30/06/2023,PUBLIC TRANSPORT & PARKING,DISPUTE,CORPORATE TRAVEL MANAGEMENTLIMITED,PINV1855,123
DBT,ACAS,30/06/2023,PUBLIC TRANSPORT & PARKING,DISPUTE,CORPORATE TRAVEL MANAGEMENTLIMITED,PINV1855,48.9
DBT,ACAS,30/06/2023,PUBLIC TRANSPORT & PARKING,F&G,CORPORATE TRAVEL MANAGEMENTLIMITED,PINV1855,181.5
DBT,ACAS,30/06/2023,PUBLIC TRANSPORT & PARKING,STRATEGY,CORPORATE TRAVEL MANAGEMENTLIMITED,PINV1855,129
DBT,ACAS,30/06/2023,PUBLIC TRANSPORT & PARKING,ADVICE,CORPORATE TRAVEL MANAGEMENTLIMITED,PINV1855,327.4
DBT,ACAS,30/06/2023,PUBLIC TRANSPORT & PARKING,ADVICE,CORPORATE TRAVEL MANAGEMENTLIMITED,PINV1855,-247.3
DBT,ACAS,30/06/2023,PUBLIC TRANSPORT & PARKING,F&G,CORPORATE TRAVEL MANAGEMENTLIMITED,PINV1855,286.4
DBT,ACAS,30/06/2023,PUBLIC TRANSPORT & PARKING,ADVICE,CORPORATE TRAVEL MANAGEMENTLIMITED,PINV1855,-247.3
DBT,ACAS,30/06/2023,PUBLIC TRANSPORT & PARKING,F&G,CORPORATE TRAVEL MANAGEMENTLIMITED,PINV1855,103.9
DBT,ACAS,30/06/2023,PUBLIC TRANSPORT & PARKING,DISPUTE,CORPORATE TRAVEL MANAGEMENTLIMITED,PINV1855,12.8
DBT,ACAS,30/06/2023,PUBLIC TRANSPORT & PARKING,DISPUTE,CORPORATE TRAVEL MANAGEMENTLIMITED,PINV1855,52.5
DBT,ACAS,30/06/2023,PUBLIC TRANSPORT & PARKING,DISPUTE,CORPORATE TRAVEL MANAGEMENTLIMITED,PINV1855,228.2
DBT,ACAS,30/06/2023,PUBLIC TRANSPORT & PARKING,DISPUTE,CORPORATE TRAVEL MANAGEMENTLIMITED,PINV1855,228.2
DBT,ACAS,30/06/2023,PUBLIC TRANSPORT & PARKING,DISPUTE,CORPORATE TRAVEL MANAGEMENTLIMITED,PINV1855,60.6
DBT,ACAS,30/06/2023,PUBLIC TRANSPORT & PARKING,ODHR,CORPORATE TRAVEL MANAGEMENTLIMITED,PINV1855,184.75
DBT,ACAS,30/06/2023,PUBLIC TRANSPORT & PARKING,ADVICE,CORPORATE TRAVEL MANAGEMENTLIMITED,PINV1855,-5.3
DBT,ACAS,30/06/2023,PUBLIC TRANSPORT & PARKING,DISPUTE,CORPORATE TRAVEL MANAGEMENTLIMITED,PINV1855,92.3
DBT,ACAS,30/06/2023,HOTEL EXPENSES,STRATEGY,CORPORATE TRAVEL MANAGEMENTLIMITED,PINV1855,85
DBT,ACAS,30/06/2023,HOTEL EXPENSES,ADVICE,CORPORATE TRAVEL MANAGEMENTLIMITED,PINV1855,85
DBT,ACAS,30/06/2023,PUBLIC TRANSPORT & PARKING,STRATEGY,CORPORATE TRAVEL MANAGEMENTLIMITED,PINV1855,59.3
DBT,ACAS,30/06/2023,PUBLIC TRANSPORT & PARKING,ADVICE,CORPORATE TRAVEL MANAGEMENTLIMITED,PINV1855,74.8
DBT,ACAS,30/06/2023,PUBLIC TRANSPORT & PARKING,ODHR,CORPORATE TRAVEL MANAGEMENTLIMITED,PINV1855,22
DBT,ACAS,30/06/2023,PUBLIC TRANSPORT & PARKING,DISPUTE,CORPORATE TRAVEL MANAGEMENTLIMITED,PINV1855,109.9
DBT,ACAS,30/06/2023,HOTEL EXPENSES,F&G,CORPORATE TRAVEL MANAGEMENTLIMITED,PINV1855,96.2
DBT,ACAS,30/06/2023,HOTEL EXPENSES,DDAT,CORPORATE TRAVEL MANAGEMENTLIMITED,PINV1855,90.2
DBT,ACAS,30/06/2023,HOTEL EXPENSES,F&G,CORPORATE TRAVEL MANAGEMENTLIMITED,PINV1855,96.2
DBT,ACAS,30/06/2023,PUBLIC TRANSPORT & PARKING,DDAT,CORPORATE TRAVEL MANAGEMENTLIMITED,PINV1855,152.6
DBT,ACAS,30/06/2023,PUBLIC TRANSPORT & PARKING,DISPUTE,CORPORATE TRAVEL MANAGEMENTLIMITED,PINV1855,244
DBT,ACAS,30/06/2023,PUBLIC TRANSPORT & PARKING,STRATEGY,CORPORATE TRAVEL MANAGEMENTLIMITED,PINV1855,187
DBT,ACAS,30/06/2023,PUBLIC TRANSPORT & PARKING,F&G,CORPORATE TRAVEL MANAGEMENTLIMITED,PINV1855,214.5
DBT,ACAS,30/06/2023,PUBLIC TRANSPORT & PARKING,F&G,CORPORATE TRAVEL MANAGEMENTLIMITED,PINV1855,214.5
DBT,ACAS,30/06/2023,PUBLIC TRANSPORT & PARKING,DISPUTE,CORPORATE TRAVEL MANAGEMENTLIMITED,PINV1855,39.5
DBT,ACAS,30/06/2023,PUBLIC TRANSPORT & PARKING,F&G,CORPORATE TRAVEL MANAGEMENTLIMITED,PINV1855,214.5
DBT,ACAS,30/06/2023,PUBLIC TRANSPORT & PARKING,F&G,CORPORATE TRAVEL MANAGEMENTLIMITED,PINV1855,214.5
DBT,ACAS,30/06/2023,PUBLIC TRANSPORT & PARKING,ODHR,CORPORATE TRAVEL MANAGEMENTLIMITED,PINV1855,229.9
DBT,ACAS,30/06/2023,HOTEL EXPENSES,F&G,CORPORATE TRAVEL MANAGEMENTLIMITED,PINV1855,94.29
DBT,ACAS,30/06/2023,HOTEL EXPENSES,F&G,CORPORATE TRAVEL MANAGEMENTLIMITED,PINV1855,94.29
DBT,ACAS,30/06/2023,HOTEL EXPENSES,F&G,CORPORATE TRAVEL MANAGEMENTLIMITED,PINV1855,94.29
DBT,ACAS,30/06/2023,HOTEL EXPENSES,F&G,CORPORATE TRAVEL MANAGEMENTLIMITED,PINV1855,94.29
DBT,ACAS,30/06/2023,PUBLIC TRANSPORT & PARKING,DISPUTE,CORPORATE TRAVEL MANAGEMENTLIMITED,PINV1855,214.5
DBT,ACAS,30/06/2023,PUBLIC TRANSPORT & PARKING,STRATEGY,CORPORATE TRAVEL MANAGEMENTLIMITED,PINV1855,93.75
DBT,ACAS,30/06/2023,PUBLIC TRANSPORT & PARKING,STRATEGY,CORPORATE TRAVEL MANAGEMENTLIMITED,PINV1855,7.75
DBT,ACAS,30/06/2023,PUBLIC TRANSPORT & PARKING,DISPUTE,CORPORATE TRAVEL MANAGEMENTLIMITED,PINV1855,214.5
DBT,ACAS,30/06/2023,PUBLIC TRANSPORT & PARKING,STRATEGY,CORPORATE TRAVEL MANAGEMENTLIMITED,PINV1855,38.6
DBT,ACAS,30/06/2023,PUBLIC TRANSPORT & PARKING,ODHR,CORPORATE TRAVEL MANAGEMENTLIMITED,PINV1855,13.4
DBT,ACAS,30/06/2023,PUBLIC TRANSPORT & PARKING,ODHR,CORPORATE TRAVEL MANAGEMENTLIMITED,PINV1855,188.8
DBT,ACAS,30/06/2023,PUBLIC TRANSPORT & PARKING,ODHR,CORPORATE TRAVEL MANAGEMENTLIMITED,PINV1855,13.4
DBT,ACAS,30/06/2023,PUBLIC TRANSPORT & PARKING,ODHR,CORPORATE TRAVEL MANAGEMENTLIMITED,PINV1855,188.8
DBT,ACAS,30/06/2023,PUBLIC TRANSPORT & PARKING,ODHR,CORPORATE TRAVEL MANAGEMENTLIMITED,PINV1855,258.8
DBT,ACAS,30/06/2023,PUBLIC TRANSPORT & PARKING,F&G,CORPORATE TRAVEL MANAGEMENTLIMITED,PINV1855,143.2
DBT,ACAS,30/06/2023,PUBLIC TRANSPORT & PARKING,F&G,CORPORATE TRAVEL MANAGEMENTLIMITED,PINV1855,143.2
DBT,ACAS,30/06/2023,PUBLIC TRANSPORT & PARKING,F&G,CORPORATE TRAVEL MANAGEMENTLIMITED,PINV1855,365.1
DBT,ACAS,30/06/2023,PUBLIC TRANSPORT & PARKING,ODHR,CORPORATE TRAVEL MANAGEMENTLIMITED,PINV1855,268.37
DBT,ACAS,30/06/2023,PUBLIC TRANSPORT & PARKING,F&G,CORPORATE TRAVEL MANAGEMENTLIMITED,PINV1855,365.1
DBT,ACAS,30/06/2023,PUBLIC TRANSPORT & PARKING,F&G,CORPORATE TRAVEL MANAGEMENTLIMITED,PINV1855,365.1
DBT,ACAS,30/06/2023,PUBLIC TRANSPORT & PARKING,ODHR,CORPORATE TRAVEL MANAGEMENTLIMITED,PINV1855,190.2
DBT,ACAS,30/06/2023,PUBLIC TRANSPORT & PARKING,ADVICE,CORPORATE TRAVEL MANAGEMENTLIMITED,PINV1855,42.8
DBT,ACAS,30/06/2023,PUBLIC TRANSPORT & PARKING,F&G,CORPORATE TRAVEL MANAGEMENTLIMITED,PINV1855,64.1
DBT,ACAS,30/06/2023,PUBLIC TRANSPORT & PARKING,F&G,CORPORATE TRAVEL MANAGEMENTLIMITED,PINV1855,50.4
DBT,ACAS,30/06/2023,PUBLIC TRANSPORT & PARKING,DISPUTE,CORPORATE TRAVEL MANAGEMENTLIMITED,PINV1855,28
DBT,ACAS,30/06/2023,PUBLIC TRANSPORT & PARKING,DISPUTE,CORPORATE TRAVEL MANAGEMENTLIMITED,PINV1855,56
DBT,ACAS,30/06/2023,PUBLIC TRANSPORT & PARKING,DDAT,CORPORATE TRAVEL MANAGEMENTLIMITED,PINV1855,217.2
DBT,ACAS,30/06/2023,PUBLIC TRANSPORT & PARKING,DDAT,CORPORATE TRAVEL MANAGEMENTLIMITED,PINV1855,182.6
DBT,ACAS,30/06/2023,HOTEL EXPENSES,DISPUTE,CORPORATE TRAVEL MANAGEMENTLIMITED,PINV1855,85
DBT,ACAS,30/06/2023,HOTEL EXPENSES,ADVICE,CORPORATE TRAVEL MANAGEMENTLIMITED,PINV1855,153
DBT,ACAS,30/06/2023,HOTEL EXPENSES,F&G,CORPORATE TRAVEL MANAGEMENTLIMITED,PINV1855,80
DBT,ACAS,30/06/2023,HOTEL EXPENSES,ADVICE,CORPORATE TRAVEL MANAGEMENTLIMITED,PINV1855,153
DBT,ACAS,30/06/2023,PUBLIC TRANSPORT & PARKING,STRATEGY,CORPORATE TRAVEL MANAGEMENTLIMITED,PINV1855,41.75
DBT,ACAS,30/06/2023,PUBLIC TRANSPORT & PARKING,ODHR,CORPORATE TRAVEL MANAGEMENTLIMITED,PINV1855,214.5
DBT,ACAS,30/06/2023,PUBLIC TRANSPORT & PARKING,CO,CORPORATE TRAVEL MANAGEMENTLIMITED,PINV1855,20.9
DBT,ACAS,30/06/2023,PUBLIC TRANSPORT & PARKING,CO,CORPORATE TRAVEL MANAGEMENTLIMITED,PINV1855,39.6
DBT,ACAS,30/06/2023,PUBLIC TRANSPORT & PARKING,ODHR,CORPORATE TRAVEL MANAGEMENTLIMITED,PINV1855,156.1
DBT,ACAS,30/06/2023,PUBLIC TRANSPORT & PARKING,ODHR,CORPORATE TRAVEL MANAGEMENTLIMITED,PINV1855,258.8
DBT,ACAS,30/06/2023,PUBLIC TRANSPORT & PARKING,ODHR,CORPORATE TRAVEL MANAGEMENTLIMITED,PINV1855,258.8
DBT,ACAS,30/06/2023,PUBLIC TRANSPORT & PARKING,DISPUTE,CORPORATE TRAVEL MANAGEMENTLIMITED,PINV1855,37.7
DBT,ACAS,30/06/2023,PUBLIC TRANSPORT & PARKING,CO,CORPORATE TRAVEL MANAGEMENTLIMITED,PINV1855,39.6
DBT,ACAS,30/06/2023,PUBLIC TRANSPORT & PARKING,F&G,CORPORATE TRAVEL MANAGEMENTLIMITED,PINV1855,245
DBT,ACAS,30/06/2023,PUBLIC TRANSPORT & PARKING,F&G,CORPORATE TRAVEL MANAGEMENTLIMITED,PINV1855,235.5
DBT,ACAS,30/06/2023,PUBLIC TRANSPORT & PARKING,ODHR,CORPORATE TRAVEL MANAGEMENTLIMITED,PINV1855,63.3
DBT,ACAS,30/06/2023,PUBLIC TRANSPORT & PARKING,DISPUTE,CORPORATE TRAVEL MANAGEMENTLIMITED,PINV1855,47.3
DBT,ACAS,30/06/2023,PUBLIC TRANSPORT & PARKING,DISPUTE,CORPORATE TRAVEL MANAGEMENTLIMITED,PINV1855,63.9
DBT,ACAS,30/06/2023,PUBLIC TRANSPORT & PARKING,DISPUTE,CORPORATE TRAVEL MANAGEMENTLIMITED,PINV1855,66.7
DBT,ACAS,30/06/2023,PUBLIC TRANSPORT & PARKING,CO,CORPORATE TRAVEL MANAGEMENTLIMITED,PINV1855,20.9
DBT,ACAS,30/06/2023,HOTEL EXPENSES,STRATEGY,CORPORATE TRAVEL MANAGEMENTLIMITED,PINV1855,81
DBT,ACAS,30/06/2023,HOTEL EXPENSES,ADVICE,CORPORATE TRAVEL MANAGEMENTLIMITED,PINV1855,53.33
DBT,ACAS,30/06/2023,HOTEL EXPENSES,F&G,CORPORATE TRAVEL MANAGEMENTLIMITED,PINV1855,89
DBT,ACAS,30/06/2023,PUBLIC TRANSPORT & PARKING,DDAT,CORPORATE TRAVEL MANAGEMENTLIMITED,PINV1855,170.4
DBT,ACAS,30/06/2023,PUBLIC TRANSPORT & PARKING,DDAT,CORPORATE TRAVEL MANAGEMENTLIMITED,PINV1855,117.8
DBT,ACAS,30/06/2023,PUBLIC TRANSPORT & PARKING,ODHR,CORPORATE TRAVEL MANAGEMENTLIMITED,PINV1855,63.3
DBT,ACAS,30/06/2023,PUBLIC TRANSPORT & PARKING,DISPUTE,CORPORATE TRAVEL MANAGEMENTLIMITED,PINV1855,54.9
DBT,ACAS,30/06/2023,PUBLIC TRANSPORT & PARKING,DISPUTE,CORPORATE TRAVEL MANAGEMENTLIMITED,PINV1855,44.5
DBT,ACAS,30/06/2023,PUBLIC TRANSPORT & PARKING,DDAT,CORPORATE TRAVEL MANAGEMENTLIMITED,PINV1855,166.3
DBT,ACAS,30/06/2023,PUBLIC TRANSPORT & PARKING,STRATEGY,CORPORATE TRAVEL MANAGEMENTLIMITED,PINV1855,254.8
DBT,ACAS,30/06/2023,PUBLIC TRANSPORT & PARKING,STRATEGY,CORPORATE TRAVEL MANAGEMENTLIMITED,PINV1855,108.1
DBT,ACAS,30/06/2023,PUBLIC TRANSPORT & PARKING,DISPUTE,CORPORATE TRAVEL MANAGEMENTLIMITED,PINV1855,113.3
DBT,ACAS,30/06/2023,PUBLIC TRANSPORT & PARKING,STRATEGY,CORPORATE TRAVEL MANAGEMENTLIMITED,PINV1855,70
DBT,ACAS,30/06/2023,HOTEL EXPENSES,ADVICE,CORPORATE TRAVEL MANAGEMENTLIMITED,PINV1855,111.66
DBT,ACAS,30/06/2023,HOTEL EXPENSES,DISPUTE,CORPORATE TRAVEL MANAGEMENTLIMITED,PINV1855,75
DBT,ACAS,30/06/2023,HOTEL EXPENSES,DISPUTE,CORPORATE TRAVEL MANAGEMENTLIMITED,PINV1855,75
DBT,ACAS,30/06/2023,PUBLIC TRANSPORT & PARKING,DISPUTE,CORPORATE TRAVEL MANAGEMENTLIMITED,PINV1855,58.5
DBT,ACAS,30/06/2023,PUBLIC TRANSPORT & PARKING,DISPUTE,CORPORATE TRAVEL MANAGEMENTLIMITED,PINV1855,20.4
DBT,ACAS,30/06/2023,PUBLIC TRANSPORT & PARKING,DISPUTE,CORPORATE TRAVEL MANAGEMENTLIMITED,PINV1855,134.9
DBT,ACAS,30/06/2023,PUBLIC TRANSPORT & PARKING,DISPUTE,CORPORATE TRAVEL MANAGEMENTLIMITED,PINV1855,23.1
DBT,ACAS,30/06/2023,PUBLIC TRANSPORT & PARKING,DISPUTE,CORPORATE TRAVEL MANAGEMENTLIMITED,PINV1855,106.5
DBT,ACAS,30/06/2023,HOTEL EXPENSES,ADVICE,CORPORATE TRAVEL MANAGEMENTLIMITED,PINV1855,145.42
DBT,ACAS,30/06/2023,HOTEL EXPENSES,ADVICE,CORPORATE TRAVEL MANAGEMENTLIMITED,PINV1855,145.25
DBT,ACAS,30/06/2023,PUBLIC TRANSPORT & PARKING,DDAT,CORPORATE TRAVEL MANAGEMENTLIMITED,PINV1855,25.05
DBT,ACAS,30/06/2023,PUBLIC TRANSPORT & PARKING,ADVICE,CORPORATE TRAVEL MANAGEMENTLIMITED,PINV1855,39.5
DBT,ACAS,30/06/2023,PUBLIC TRANSPORT & PARKING,STRATEGY,CORPORATE TRAVEL MANAGEMENTLIMITED,PINV1855,156.6
DBT,ACAS,30/06/2023,PUBLIC TRANSPORT & PARKING,STRATEGY,CORPORATE TRAVEL MANAGEMENTLIMITED,PINV1855,209.2
DBT,ACAS,30/06/2023,PUBLIC TRANSPORT & PARKING,STRATEGY,CORPORATE TRAVEL MANAGEMENTLIMITED,PINV1855,210.15
DBT,ACAS,30/06/2023,HOTEL EXPENSES,ODHR,CORPORATE TRAVEL MANAGEMENTLIMITED,PINV1855,75
DBT,ACAS,30/06/2023,HOTEL EXPENSES,ADVICE,CORPORATE TRAVEL MANAGEMENTLIMITED,PINV1855,219
DBT,ACAS,30/06/2023,HOTEL EXPENSES,ADVICE,CORPORATE TRAVEL MANAGEMENTLIMITED,PINV1855,219
DBT,ACAS,30/06/2023,HOTEL EXPENSES,STRATEGY,CORPORATE TRAVEL MANAGEMENTLIMITED,PINV1855,361.48
DBT,ACAS,30/06/2023,HOTEL EXPENSES,ADVICE,CORPORATE TRAVEL MANAGEMENTLIMITED,PINV1855,219
DBT,ACAS,30/06/2023,HOTEL EXPENSES,ODHR,CORPORATE TRAVEL MANAGEMENTLIMITED,PINV1855,90.9
DBT,ACAS,30/06/2023,HOTEL EXPENSES,F&G,CORPORATE TRAVEL MANAGEMENTLIMITED,PINV1855,253.5
DBT,ACAS,30/06/2023,HOTEL EXPENSES,F&G,CORPORATE TRAVEL MANAGEMENTLIMITED,PINV1855,96.2
DBT,ACAS,30/06/2023,HOTEL EXPENSES,F&G,CORPORATE TRAVEL MANAGEMENTLIMITED,PINV1855,293.5
DBT,ACAS,30/06/2023,HOTEL EXPENSES,F&G,CORPORATE TRAVEL MANAGEMENTLIMITED,PINV1855,146.75
DBT,ACAS,30/06/2023,PUBLIC TRANSPORT & PARKING,F&G,CORPORATE TRAVEL MANAGEMENTLIMITED,PINV1855,307.2
DBT,ACAS,30/06/2023,HOTEL EXPENSES,ADVICE,CORPORATE TRAVEL MANAGEMENTLIMITED,PINV1855,216.88
DBT,ACAS,30/06/2023,HOTEL EXPENSES,ADVICE,CORPORATE TRAVEL MANAGEMENTLIMITED,PINV1855,269.25
DBT,ACAS,30/06/2023,HOTEL EXPENSES,ADVICE,CORPORATE TRAVEL MANAGEMENTLIMITED,PINV1855,269.25
DBT,ACAS,30/06/2023,HOTEL EXPENSES,ADVICE,CORPORATE TRAVEL MANAGEMENTLIMITED,PINV1855,60
DBT,ACAS,30/06/2023,HOTEL EXPENSES,F&G,CORPORATE TRAVEL MANAGEMENTLIMITED,PINV1855,148.75
DBT,ACAS,30/06/2023,HOTEL EXPENSES,STRATEGY,CORPORATE TRAVEL MANAGEMENTLIMITED,PINV1855,82.38
DBT,ACAS,30/06/2023,HOTEL EXPENSES,STRATEGY,CORPORATE TRAVEL MANAGEMENTLIMITED,PINV1855,85
DBT,ACAS,30/06/2023,HOTEL EXPENSES,DDAT,CORPORATE TRAVEL MANAGEMENTLIMITED,PINV1855,83.79
DBT,ACAS,30/06/2023,PUBLIC TRANSPORT & PARKING,F&G,CORPORATE TRAVEL MANAGEMENTLIMITED,PINV1855,211.1
DBT,ACAS,30/06/2023,PUBLIC TRANSPORT & PARKING,F&G,CORPORATE TRAVEL MANAGEMENTLIMITED,PINV1855,165.2
DBT,ACAS,30/06/2023,PUBLIC TRANSPORT & PARKING,F&G,CORPORATE TRAVEL MANAGEMENTLIMITED,PINV1855,60.1
DBT,ACAS,30/06/2023,PUBLIC TRANSPORT & PARKING,ADVICE,CORPORATE TRAVEL MANAGEMENTLIMITED,PINV1855,39.5
DBT,ACAS,30/06/2023,PUBLIC TRANSPORT & PARKING,ADVICE,CORPORATE TRAVEL MANAGEMENTLIMITED,PINV1855,39.5
DBT,ACAS,30/06/2023,HOTEL EXPENSES,DISPUTE,CORPORATE TRAVEL MANAGEMENTLIMITED,PINV1855,72
DBT,ACAS,30/06/2023,PUBLIC TRANSPORT & PARKING,ADVICE,CORPORATE TRAVEL MANAGEMENTLIMITED,PINV1855,-139.6
DBT,ACAS,30/06/2023,PUBLIC TRANSPORT & PARKING,DISPUTE,CORPORATE TRAVEL MANAGEMENTLIMITED,PINV1855,64.6
DBT,ACAS,30/06/2023,PUBLIC TRANSPORT & PARKING,ODHR,CORPORATE TRAVEL MANAGEMENTLIMITED,PINV1855,266.8
DBT,ACAS,30/06/2023,PUBLIC TRANSPORT & PARKING,ADVICE,CORPORATE TRAVEL MANAGEMENTLIMITED,PINV1855,141.1
DBT,ACAS,30/06/2023,CO&CAC Non Staff T&S,CAC,CORPORATE TRAVEL MANAGEMENTLIMITED,PINV1855,92.1
DBT,ACAS,30/06/2023,HOTEL EXPENSES,ADVICE,CORPORATE TRAVEL MANAGEMENTLIMITED,PINV1855,122.32
DBT,ACAS,30/06/2023,PUBLIC TRANSPORT & PARKING,ADVICE,CORPORATE TRAVEL MANAGEMENTLIMITED,PINV1855,-247.3
DBT,ACAS,30/06/2023,HOTEL EXPENSES,STRATEGY,CORPORATE TRAVEL MANAGEMENTLIMITED,PINV1855,85.5
DBT,ACAS,30/06/2023,HOTEL EXPENSES,DISPUTE,CORPORATE TRAVEL MANAGEMENTLIMITED,PINV1855,160
DBT,ACAS,30/06/2023,HOTEL EXPENSES,F&G,CORPORATE TRAVEL MANAGEMENTLIMITED,PINV1855,101.25
DBT,ACAS,30/06/2023,HOTEL EXPENSES,DISPUTE,CORPORATE TRAVEL MANAGEMENTLIMITED,PINV1855,456.74
DBT,ACAS,30/06/2023,HOTEL EXPENSES,STRATEGY,CORPORATE TRAVEL MANAGEMENTLIMITED,PINV1855,101.25
DBT,ACAS,30/06/2023,HOTEL EXPENSES,DDAT,CORPORATE TRAVEL MANAGEMENTLIMITED,PINV1855,102
DBT,ACAS,30/06/2023,HOTEL EXPENSES,DISPUTE,CORPORATE TRAVEL MANAGEMENTLIMITED,PINV1855,101.25
DBT,ACAS,30/06/2023,HOTEL EXPENSES,F&G,CORPORATE TRAVEL MANAGEMENTLIMITED,PINV1855,101.25
DBT,ACAS,30/06/2023,PUBLIC TRANSPORT & PARKING,CO,CORPORATE TRAVEL MANAGEMENTLIMITED,PINV1855,39.6
DBT,ACAS,30/06/2023,PUBLIC TRANSPORT & PARKING,CO,CORPORATE TRAVEL MANAGEMENTLIMITED,PINV1855,27.1
DBT,ACAS,30/06/2023,PUBLIC TRANSPORT & PARKING,ODHR,CORPORATE TRAVEL MANAGEMENTLIMITED,PINV1855,92.85
DBT,ACAS,30/06/2023,PUBLIC TRANSPORT & PARKING,DISPUTE,CORPORATE TRAVEL MANAGEMENTLIMITED,PINV1855,134.8
DBT,ACAS,30/06/2023,PUBLIC TRANSPORT & PARKING,ODHR,CORPORATE TRAVEL MANAGEMENTLIMITED,PINV1855,214.5
DBT,ACAS,30/06/2023,PUBLIC TRANSPORT & PARKING,DDAT,CORPORATE TRAVEL MANAGEMENTLIMITED,PINV1855,298.6
DBT,ACAS,30/06/2023,PUBLIC TRANSPORT & PARKING,F&G,CORPORATE TRAVEL MANAGEMENTLIMITED,PINV1855,104.3
DBT,ACAS,30/06/2023,PUBLIC TRANSPORT & PARKING,DISPUTE,CORPORATE TRAVEL MANAGEMENTLIMITED,PINV1855,47.3
DBT,ACAS,30/06/2023,PUBLIC TRANSPORT & PARKING,ADVICE,CORPORATE TRAVEL MANAGEMENTLIMITED,PINV1855,38.5
DBT,ACAS,30/06/2023,PUBLIC TRANSPORT & PARKING,STRATEGY,CORPORATE TRAVEL MANAGEMENTLIMITED,PINV1855,45.2
DBT,ACAS,30/06/2023,PUBLIC TRANSPORT & PARKING,ADVICE,CORPORATE TRAVEL MANAGEMENTLIMITED,PINV1855,-58.8
DBT,ACAS,30/06/2023,PUBLIC TRANSPORT & PARKING,ADVICE,CORPORATE TRAVEL MANAGEMENTLIMITED,PINV1855,-5.3
DBT,ACAS,30/06/2023,HOTEL EXPENSES,ADVICE,CORPORATE TRAVEL MANAGEMENTLIMITED,PINV1855,219
DBT,ACAS,30/06/2023,PUBLIC TRANSPORT & PARKING,STRATEGY,CORPORATE TRAVEL MANAGEMENTLIMITED,PINV1855,120.7
DBT,ACAS,30/06/2023,PUBLIC TRANSPORT & PARKING,F&G,CORPORATE TRAVEL MANAGEMENTLIMITED,PINV1855,194.8
DBT,ACAS,30/06/2023,PUBLIC TRANSPORT & PARKING,STRATEGY,CORPORATE TRAVEL MANAGEMENTLIMITED,PINV1855,310.8
DBT,ACAS,30/06/2023,PUBLIC TRANSPORT & PARKING,STRATEGY,CORPORATE TRAVEL MANAGEMENTLIMITED,PINV1855,203.2
DBT,ACAS,30/06/2023,HOTEL EXPENSES,DISPUTE,CORPORATE TRAVEL MANAGEMENTLIMITED,PINV1855,72
DBT,ACAS,30/06/2023,HOTEL EXPENSES,ODHR,CORPORATE TRAVEL MANAGEMENTLIMITED,PINV1855,251.6
DBT,ACAS,30/06/2023,PUBLIC TRANSPORT & PARKING,ODHR,CORPORATE TRAVEL MANAGEMENTLIMITED,PINV1855,154.9
DBT,ACAS,30/06/2023,PUBLIC TRANSPORT & PARKING,STRATEGY,CORPORATE TRAVEL MANAGEMENTLIMITED,PINV1855,32.9
DBT,ACAS,30/06/2023,PUBLIC TRANSPORT & PARKING,DISPUTE,CORPORATE TRAVEL MANAGEMENTLIMITED,PINV1855,58.5
DBT,ACAS,30/06/2023,PUBLIC TRANSPORT & PARKING,DISPUTE,CORPORATE TRAVEL MANAGEMENTLIMITED,PINV1855,106.5
DBT,ACAS,30/06/2023,PUBLIC TRANSPORT & PARKING,STRATEGY,CORPORATE TRAVEL MANAGEMENTLIMITED,PINV1855,218.1
DBT,ACAS,30/06/2023,PUBLIC TRANSPORT & PARKING,STRATEGY,CORPORATE TRAVEL MANAGEMENTLIMITED,PINV1855,159
DBT,ACAS,30/06/2023,HOTEL EXPENSES,ADVICE,CORPORATE TRAVEL MANAGEMENTLIMITED,PINV1855,182.75
DBT,ACAS,30/06/2023,PUBLIC TRANSPORT & PARKING,STRATEGY,CORPORATE TRAVEL MANAGEMENTLIMITED,PINV1855,28
DBT,ACAS,30/06/2023,PUBLIC TRANSPORT & PARKING,STRATEGY,CORPORATE TRAVEL MANAGEMENTLIMITED,PINV1855,109.05
DBT,ACAS,30/06/2023,PUBLIC TRANSPORT & PARKING,ODHR,CORPORATE TRAVEL MANAGEMENTLIMITED,PINV1855,238.4
DBT,ACAS,30/06/2023,PUBLIC TRANSPORT & PARKING,ADVICE,CORPORATE TRAVEL MANAGEMENTLIMITED,PINV1855,82.8
DBT,ACAS,30/06/2023,PUBLIC TRANSPORT & PARKING,ADVICE,CORPORATE TRAVEL MANAGEMENTLIMITED,PINV1855,48.7
DBT,ACAS,30/06/2023,PUBLIC TRANSPORT & PARKING,ADVICE,CORPORATE TRAVEL MANAGEMENTLIMITED,PINV1855,290.2
DBT,ACAS,30/06/2023,PUBLIC TRANSPORT & PARKING,F&G,CORPORATE TRAVEL MANAGEMENTLIMITED,PINV1855,158.7
DBT,ACAS,30/06/2023,PUBLIC TRANSPORT & PARKING,STRATEGY,CORPORATE TRAVEL MANAGEMENTLIMITED,PINV1855,281.3
DBT,ACAS,30/06/2023,PUBLIC TRANSPORT & PARKING,DISPUTE,CORPORATE TRAVEL MANAGEMENTLIMITED,PINV1855,61.3
DBT,ACAS,30/06/2023,PUBLIC TRANSPORT & PARKING,STRATEGY,CORPORATE TRAVEL MANAGEMENTLIMITED,PINV1855,109.05
DBT,ACAS,30/06/2023,PUBLIC TRANSPORT & PARKING,DISPUTE,CORPORATE TRAVEL MANAGEMENTLIMITED,PINV1855,81.5
DBT,ACAS,30/06/2023,PUBLIC TRANSPORT & PARKING,DISPUTE,CORPORATE TRAVEL MANAGEMENTLIMITED,PINV1855,106.5
DBT,ACAS,30/06/2023,PUBLIC TRANSPORT & PARKING,ODHR,CORPORATE TRAVEL MANAGEMENTLIMITED,PINV1855,286.4
DBT,ACAS,30/06/2023,PUBLIC TRANSPORT & PARKING,STRATEGY,CORPORATE TRAVEL MANAGEMENTLIMITED,PINV1855,176.6
DBT,ACAS,30/06/2023,PUBLIC TRANSPORT & PARKING,ADVICE,CORPORATE TRAVEL MANAGEMENTLIMITED,PINV1855,290.2
DBT,ACAS,30/06/2023,PUBLIC TRANSPORT & PARKING,ODHR,CORPORATE TRAVEL MANAGEMENTLIMITED,PINV1855,12.2
DBT,ACAS,30/06/2023,PUBLIC TRANSPORT & PARKING,DISPUTE,CORPORATE TRAVEL MANAGEMENTLIMITED,PINV1855,158.5
DBT,ACAS,30/06/2023,PUBLIC TRANSPORT & PARKING,ODHR,CORPORATE TRAVEL MANAGEMENTLIMITED,PINV1855,195.3
DBT,ACAS,30/06/2023,PUBLIC TRANSPORT & PARKING,ODHR,CORPORATE TRAVEL MANAGEMENTLIMITED,PINV1855,15.7
DBT,ACAS,30/06/2023,PUBLIC TRANSPORT & PARKING,DISPUTE,CORPORATE TRAVEL MANAGEMENTLIMITED,PINV1855,158.5
DBT,ACAS,30/06/2023,PUBLIC TRANSPORT & PARKING,ADVICE,CORPORATE TRAVEL MANAGEMENTLIMITED,PINV1855,48.9
DBT,ACAS,30/06/2023,PUBLIC TRANSPORT & PARKING,F&G,CORPORATE TRAVEL MANAGEMENTLIMITED,PINV1855,189.9
DBT,ACAS,30/06/2023,PUBLIC TRANSPORT & PARKING,STRATEGY,CORPORATE TRAVEL MANAGEMENTLIMITED,PINV1855,233
DBT,ACAS,30/06/2023,PUBLIC TRANSPORT & PARKING,STRATEGY,CORPORATE TRAVEL MANAGEMENTLIMITED,PINV1855,233
DBT,ACAS,30/06/2023,PUBLIC TRANSPORT & PARKING,STRATEGY,CORPORATE TRAVEL MANAGEMENTLIMITED,PINV1855,233
DBT,ACAS,30/06/2023,PUBLIC TRANSPORT & PARKING,ODHR,CORPORATE TRAVEL MANAGEMENTLIMITED,PINV1855,103
DBT,ACAS,30/06/2023,PUBLIC TRANSPORT & PARKING,ODHR,CORPORATE TRAVEL MANAGEMENTLIMITED,PINV1855,114.9
DBT,ACAS,30/06/2023,PUBLIC TRANSPORT & PARKING,STRATEGY,CORPORATE TRAVEL MANAGEMENTLIMITED,PINV1855,286.4
DBT,ACAS,30/06/2023,PUBLIC TRANSPORT & PARKING,DISPUTE,CORPORATE TRAVEL MANAGEMENTLIMITED,PINV1855,56.9
DBT,ACAS,30/06/2023,HOTEL EXPENSES,ODHR,CORPORATE TRAVEL MANAGEMENTLIMITED,PINV1855,207.29
DBT,ACAS,30/06/2023,PUBLIC TRANSPORT & PARKING,ODHR,CORPORATE TRAVEL MANAGEMENTLIMITED,PINV1855,237.9
DBT,ACAS,30/06/2023,PUBLIC TRANSPORT & PARKING,ODHR,CORPORATE TRAVEL MANAGEMENTLIMITED,PINV1855,13.1
DBT,ACAS,30/06/2023,PUBLIC TRANSPORT & PARKING,ADVICE,CORPORATE TRAVEL MANAGEMENTLIMITED,PINV1855,44.2
DBT,ACAS,30/06/2023,PUBLIC TRANSPORT & PARKING,DISPUTE,CORPORATE TRAVEL MANAGEMENTLIMITED,PINV1855,49
DBT,ACAS,30/06/2023,PUBLIC TRANSPORT & PARKING,DISPUTE,CORPORATE TRAVEL MANAGEMENTLIMITED,PINV1855,106.5
DBT,ACAS,30/06/2023,PUBLIC TRANSPORT & PARKING,DISPUTE,CORPORATE TRAVEL MANAGEMENTLIMITED,PINV1855,88.9
DBT,ACAS,30/06/2023,PUBLIC TRANSPORT & PARKING,DISPUTE,CORPORATE TRAVEL MANAGEMENTLIMITED,PINV1855,53.3
DBT,ACAS,30/06/2023,PUBLIC TRANSPORT & PARKING,ADVICE,CORPORATE TRAVEL MANAGEMENTLIMITED,PINV1855,37.5
DBT,ACAS,30/06/2023,PUBLIC TRANSPORT & PARKING,DISPUTE,CORPORATE TRAVEL MANAGEMENTLIMITED,PINV1855,39.6
DBT,ACAS,30/06/2023,PUBLIC TRANSPORT & PARKING,DISPUTE,CORPORATE TRAVEL MANAGEMENTLIMITED,PINV1855,126.2
DBT,ACAS,30/06/2023,PUBLIC TRANSPORT & PARKING,STRATEGY,CORPORATE TRAVEL MANAGEMENTLIMITED,PINV1855,94.35
DBT,ACAS,30/06/2023,HOTEL EXPENSES,ODHR,CORPORATE TRAVEL MANAGEMENTLIMITED,PINV1855,252.5
DBT,ACAS,30/06/2023,HOTEL EXPENSES,STRATEGY,CORPORATE TRAVEL MANAGEMENTLIMITED,PINV1855,233.6
DBT,ACAS,30/06/2023,HOTEL EXPENSES,DISPUTE,CORPORATE TRAVEL MANAGEMENTLIMITED,PINV1855,236.5
DBT,ACAS,30/06/2023,HOTEL EXPENSES,ODHR,CORPORATE TRAVEL MANAGEMENTLIMITED,PINV1855,130
DBT,ACAS,30/06/2023,PUBLIC TRANSPORT & PARKING,ODHR,CORPORATE TRAVEL MANAGEMENTLIMITED,PINV1855,194.8
DBT,ACAS,30/06/2023,HOTEL EXPENSES,ODHR,CORPORATE TRAVEL MANAGEMENTLIMITED,PINV1855,497.8
DBT,ACAS,30/06/2023,PUBLIC TRANSPORT & PARKING,ODHR,CORPORATE TRAVEL MANAGEMENTLIMITED,PINV1855,288.5
DBT,ACAS,30/06/2023,PUBLIC TRANSPORT & PARKING,ODHR,CORPORATE TRAVEL MANAGEMENTLIMITED,PINV1855,288.5
DBT,ACAS,30/06/2023,PUBLIC TRANSPORT & PARKING,DDAT,CORPORATE TRAVEL MANAGEMENTLIMITED,PINV1855,55.5
DBT,ACAS,30/06/2023,PUBLIC TRANSPORT & PARKING,ODHR,CORPORATE TRAVEL MANAGEMENTLIMITED,PINV1855,194.8
DBT,ACAS,30/06/2023,PUBLIC TRANSPORT & PARKING,ODHR,CORPORATE TRAVEL MANAGEMENTLIMITED,PINV1855,273.3
DBT,ACAS,30/06/2023,PUBLIC TRANSPORT & PARKING,STRATEGY,CORPORATE TRAVEL MANAGEMENTLIMITED,PINV1855,196.6
DBT,ACAS,30/06/2023,PUBLIC TRANSPORT & PARKING,ODHR,CORPORATE TRAVEL MANAGEMENTLIMITED,PINV1855,184.6
DBT,ACAS,30/06/2023,PUBLIC TRANSPORT & PARKING,ODHR,CORPORATE TRAVEL MANAGEMENTLIMITED,PINV1855,384.6
DBT,ACAS,30/06/2023,PUBLIC TRANSPORT & PARKING,STRATEGY,CORPORATE TRAVEL MANAGEMENTLIMITED,PINV1855,48.15
DBT,ACAS,30/06/2023,PUBLIC TRANSPORT & PARKING,ODHR,CORPORATE TRAVEL MANAGEMENTLIMITED,PINV1855,57.5
DBT,ACAS,30/06/2023,PUBLIC TRANSPORT & PARKING,ODHR,CORPORATE TRAVEL MANAGEMENTLIMITED,PINV1855,137.8
DBT,ACAS,30/06/2023,PUBLIC TRANSPORT & PARKING,DISPUTE,CORPORATE TRAVEL MANAGEMENTLIMITED,PINV1855,117
DBT,ACAS,30/06/2023,PUBLIC TRANSPORT & PARKING,DISPUTE,CORPORATE TRAVEL MANAGEMENTLIMITED,PINV1855,117
DBT,ACAS,30/06/2023,PUBLIC TRANSPORT & PARKING,DISPUTE,CORPORATE TRAVEL MANAGEMENTLIMITED,PINV1855,126.1
DBT,ACAS,30/06/2023,PUBLIC TRANSPORT & PARKING,STRATEGY,CORPORATE TRAVEL MANAGEMENTLIMITED,PINV1855,238.7
DBT,ACAS,30/06/2023,PUBLIC TRANSPORT & PARKING,DISPUTE,CORPORATE TRAVEL MANAGEMENTLIMITED,PINV1855,75.5
DBT,ACAS,30/06/2023,PUBLIC TRANSPORT & PARKING,ODHR,CORPORATE TRAVEL MANAGEMENTLIMITED,PINV1855,220.2
DBT,ACAS,30/06/2023,PUBLIC TRANSPORT & PARKING,DDAT,CORPORATE TRAVEL MANAGEMENTLIMITED,PINV1855,275.2
DBT,ACAS,30/06/2023,PUBLIC TRANSPORT & PARKING,F&G,CORPORATE TRAVEL MANAGEMENTLIMITED,PINV1855,134.6
DBT,ACAS,30/06/2023,PUBLIC TRANSPORT & PARKING,DISPUTE,CORPORATE TRAVEL MANAGEMENTLIMITED,PINV1855,108.8
DBT,ACAS,30/06/2023,PUBLIC TRANSPORT & PARKING,STRATEGY,CORPORATE TRAVEL MANAGEMENTLIMITED,PINV1855,231.9
DBT,ACAS,30/06/2023,HOTEL EXPENSES,ADVICE,CORPORATE TRAVEL MANAGEMENTLIMITED,PINV1855,74.17
DBT,ACAS,30/06/2023,PUBLIC TRANSPORT & PARKING,DISPUTE,CORPORATE TRAVEL MANAGEMENTLIMITED,PINV1855,117.2
DBT,ACAS,30/06/2023,PUBLIC TRANSPORT & PARKING,DISPUTE,CORPORATE TRAVEL MANAGEMENTLIMITED,PINV1855,90.9
DBT,ACAS,30/06/2023,PUBLIC TRANSPORT & PARKING,ODHR,CORPORATE TRAVEL MANAGEMENTLIMITED,PINV1855,30.9
DBT,ACAS,30/06/2023,PUBLIC TRANSPORT & PARKING,ODHR,CORPORATE TRAVEL MANAGEMENTLIMITED,PINV1855,114
DBT,ACAS,30/06/2023,PUBLIC TRANSPORT & PARKING,DISPUTE,CORPORATE TRAVEL MANAGEMENTLIMITED,PINV1855,244.7
DBT,ACAS,30/06/2023,PUBLIC TRANSPORT & PARKING,DISPUTE,CORPORATE TRAVEL MANAGEMENTLIMITED,PINV1855,110.6
DBT,ACAS,30/06/2023,PUBLIC TRANSPORT & PARKING,ADVICE,CORPORATE TRAVEL MANAGEMENTLIMITED,PINV1855,-34
DBT,ACAS,30/06/2023,PUBLIC TRANSPORT & PARKING,ADVICE,CORPORATE TRAVEL MANAGEMENTLIMITED,PINV1855,-36.5
DBT,ACAS,30/06/2023,SOFTWARE & LICENCES,DDAT,AFD SOFTWARE LTD,PINV1856,"9,600.00"
DBT,ACAS,03/07/2023,PROFESSIONAL FEES,DDAT,W3 PARTNERSHIP LTD,PINV1858,"2,022.03"
DBT,ACAS,01/07/2023,PUBLICITY,STRATEGY,CISION,PINV1861,"2,670.00"
DBT,ACAS,06/07/2023,AGENCY STAFF,F&G,ALEXANDER MANN SOLUTIONS LTD,PINV1863,314.06
DBT,ACAS,06/07/2023,AGENCY STAFF,F&G,ALEXANDER MANN SOLUTIONS LTD,PINV1863,314.07
DBT,ACAS,30/06/2023,SOFTWARE & LICENCES,DDAT,SPROUT SOCIAL,PINV1865,"22,574.16"
DBT,ACAS,05/07/2023,PHOTOCOPIERS,DDAT,Canon (UK) Ltd,PINV1866,"3,524.92"
DBT,ACAS,05/07/2023,PHOTOCOPIERS,DDAT,Canon (UK) Ltd,PINV1866,391.66
DBT,ACAS,05/07/2023,PHOTOCOPIERS,DDAT,Canon (UK) Ltd,PINV1867,"2,962.15"
DBT,ACAS,05/07/2023,PHOTOCOPIERS,DDAT,Canon (UK) Ltd,PINV1867,329.12
DBT,ACAS,05/07/2023,PHOTOCOPIERS,DDAT,Canon (UK) Ltd,PINV1867,492.48
DBT,ACAS,05/07/2023,PHOTOCOPIERS,DDAT,Canon (UK) Ltd,PINV1867,54.72
DBT,ACAS,05/07/2023,PHOTOCOPIERS,DDAT,Canon (UK) Ltd,PINV1867,566.29
DBT,ACAS,05/07/2023,PHOTOCOPIERS,DDAT,Canon (UK) Ltd,PINV1867,62.92
DBT,ACAS,05/07/2023,PHOTOCOPIERS,DDAT,Canon (UK) Ltd,PINV1867,428.26
DBT,ACAS,05/07/2023,PHOTOCOPIERS,DDAT,Canon (UK) Ltd,PINV1867,47.58
DBT,ACAS,10/07/2023,PROFESSIONAL FEES,DDAT,GAMMA TELECOM LIMITED,PINV1871,"4,386.10"
DBT,ACAS,09/07/2023,MOBILE PHONES,DDAT,TELEFONICA UK LTD (O2),PINV1872,"3,054.42"
DBT,ACAS,09/07/2023,MOBILE PHONES,DDAT,TELEFONICA UK LTD (O2),PINV1872,339.38
DBT,ACAS,13/07/2023,REFUNDS,ADVICE,SAPPHIRE VEHICLE SERVICES LTD,PINV1874,540
DBT,ACAS,06/07/2023,MEMBERSHIP FEES,DDAT,IRMS LTD,PINV1875,399
DBT,ACAS,13/07/2023,AGENCY STAFF,DISPUTE,ALEXANDER MANN SOLUTIONS LTD,PINV1877,645.58
DBT,ACAS,13/07/2023,REFUNDS,ADVICE,THOMAS TUNNOCK LTD,PINV1878,460
DBT,ACAS,06/07/2023,HMRC CHARGES,CENTRE,HMRC,PINV1879,"32,352.66"
DBT,ACAS,19/06/2023,GOVT SOLICITORS FEES,ODHR,GOVERNMENT LEGAL DEPARTMENT,PINV1880,"2,027.52"
DBT,ACAS,13/07/2023,AGENCY STAFF,F&G,ALEXANDER MANN SOLUTIONS LTD,PINV1881,314.06
DBT,ACAS,12/07/2023,HARDWARE ADDITIONS,DDAT,SPECIALIST COMPUTER CENTRES,PINV1882,"2,984.35"
DBT,ACAS,28/04/2023,PUBLICITY,STRATEGY,HH GLOBAL,PINV1883,"9,271.42"
DBT,ACAS,19/07/2023,PROFESSIONAL FEES,DDAT,DATAQUEST GROUP LIMITED,PINV1884,"8,189.16"
DBT,ACAS,21/04/2023,SOFTWARE & LICENCES,DDAT,REAL ASSET MANAGEMENT PLC,PINV1885,"6,010.99"
DBT,ACAS,04/07/2023,MAINTENANCE (TFM2),F&G,GOVERNMENT PROPERTY AGENCY,PINV1888,"1,125.80"
DBT,ACAS,20/07/2023,AGENCY STAFF,F&G,ALEXANDER MANN SOLUTIONS LTD,PINV1889,314.06
DBT,ACAS,24/07/2023,CHILDCARE VOUCHERS,F&G,EDENRED CHILDCARE VOUCHERS LTD,PINV1891,"1,452.00"
DBT,ACAS,25/07/2023,CATERING,ADVICE,Agiito,PINV1892,144
DBT,ACAS,25/07/2023,CATERING,ADVICE,Agiito,PINV1892,216
DBT,ACAS,25/07/2023,VENUE HIRE (REC VAT),ADVICE,Agiito,PINV1892,300
DBT,ACAS,25/07/2023,CATERING,ADVICE,Agiito,PINV1892,144
DBT,ACAS,25/07/2023,VENUE HIRE (REC VAT),ADVICE,Agiito,PINV1892,576
DBT,ACAS,25/07/2023,CATERING,ADVICE,Agiito,PINV1892,65
DBT,ACAS,25/07/2023,CATERING,ADVICE,Agiito,PINV1892,260
DBT,ACAS,25/07/2023,VENUE HIRE (REC VAT),ADVICE,Agiito,PINV1892,260
DBT,ACAS,25/07/2023,CATERING,ADVICE,Agiito,PINV1892,54
DBT,ACAS,25/07/2023,CATERING,ADVICE,Agiito,PINV1892,126
DBT,ACAS,25/07/2023,VENUE HIRE (REC VAT),ADVICE,Agiito,PINV1892,170
DBT,ACAS,25/07/2023,VENUE HIRE (REC VAT),ADVICE,Agiito,PINV1892,585
DBT,ACAS,25/07/2023,VENUE HIRE (REC VAT),ADVICE,Agiito,PINV1892,416
DBT,ACAS,25/07/2023,VENUE HIRE (REC VAT),ADVICE,Agiito,PINV1892,75
DBT,ACAS,25/07/2023,VENUE HIRE (REC VAT),ADVICE,Agiito,PINV1892,320
DBT,ACAS,25/07/2023,VENUE HIRE (REC VAT),ADVICE,Agiito,PINV1892,320
DBT,ACAS,25/07/2023,VENUE HIRE (REC VAT),ADVICE,Agiito,PINV1892,604.8
DBT,ACAS,25/07/2023,VENUE HIRE (REC VAT),ADVICE,Agiito,PINV1892,364
DBT,ACAS,25/07/2023,CONFERENCE COSTS [NON - STAFF],CAC,Agiito,PINV1892,156
DBT,ACAS,25/07/2023,CONFERENCE COSTS [NON - STAFF],CAC,Agiito,PINV1892,180
DBT,ACAS,25/07/2023,CONFERENCE COSTS [NON - STAFF],CAC,Agiito,PINV1892,"1,035.00"
DBT,ACAS,25/07/2023,CONFERENCE COSTS [NON - STAFF],CAC,Agiito,PINV1892,"12,675.00"
DBT,ACAS,24/07/2023,HIRE CAR COSTS,ADVICE,ENTERPRISE RENT-A-CAR,PINV1894,108.53
DBT,ACAS,24/07/2023,HIRE CAR COSTS,ADVICE,ENTERPRISE RENT-A-CAR,PINV1894,102.42
DBT,ACAS,24/07/2023,HIRE CAR COSTS,ADVICE,ENTERPRISE RENT-A-CAR,PINV1894,102.42
DBT,ACAS,24/07/2023,HIRE CAR COSTS,DDAT,ENTERPRISE RENT-A-CAR,PINV1894,165.44
DBT,ACAS,24/07/2023,HIRE CAR PETROL,DDAT,ENTERPRISE RENT-A-CAR,PINV1894,96.2
DBT,ACAS,24/07/2023,HIRE CAR COSTS,DISPUTE,ENTERPRISE RENT-A-CAR,PINV1894,168.84
DBT,ACAS,24/07/2023,HIRE CAR COSTS,ADVICE,ENTERPRISE RENT-A-CAR,PINV1894,147.94
DBT,ACAS,24/07/2023,HIRE CAR PETROL,ADVICE,ENTERPRISE RENT-A-CAR,PINV1894,46.86
DBT,ACAS,24/07/2023,HIRE CAR COSTS,DISPUTE,ENTERPRISE RENT-A-CAR,PINV1894,133.06
DBT,ACAS,24/07/2023,HIRE CAR COSTS,DISPUTE,ENTERPRISE RENT-A-CAR,PINV1894,367.4
DBT,ACAS,18/07/2023,AGENCY STAFF,STRATEGY,MORGAN MCKINLEY GROUP LTD,PINV1895,"2,266.02"
DBT,ACAS,23/06/2023,SOFTWARE & LICENCES,DDAT,ZOOM VIDEO COMMUNICATIONS INC,PINV1898,"2,051.35"
DBT,ACAS,17/07/2023,SOFTWARE & LICENCES,DDAT,SPECIALIST COMPUTER CENTRES,PINV1903,882.29
DBT,ACAS,27/07/2023,REFUNDS,CENTRE,AIRCREW OFFICERS ASSOCIATION EUROPE,PINV1904,"4,078.35"
DBT,ACAS,07/07/2023,LOSSES,DISPUTE,NAME / DESCRIPTION WITHHELD,PINV1905,"10,500.00"
DBT,ACAS,16/07/2023,GOVT SOLICITORS FEES,ODHR,GOVERNMENT LEGAL DEPARTMENT,PINV1906,665.28
DBT,ACAS,01/05/2023,SOFTWARE & LICENCES,DDAT,AXIS 12 LIMITED,PINV1907,480
DBT,ACAS,14/05/2023,GOVT SOLICITORS FEES,ODHR,GOVERNMENT LEGAL DEPARTMENT,PINV1912,"17,091.36"
DBT,ACAS,25/05/2023,SERVICE CHARGES,F&G,GOVERNMENT PROPERTY AGENCY,PINV1913,"1,229.16"
DBT,ACAS,25/05/2023,FACILITIES MANAGEMENT,F&G,GOVERNMENT PROPERTY AGENCY,PINV1913,"9,650.40"
DBT,ACAS,25/05/2023,PROFESSIONAL FEES,F&G,GOVERNMENT PROPERTY AGENCY,PINV1913,"6,065.04"
DBT,ACAS,25/05/2023,RATES,F&G,GOVERNMENT PROPERTY AGENCY,PINV1913,"5,824.35"
DBT,ACAS,25/05/2023,Lease Liability,F&G,GOVERNMENT PROPERTY AGENCY,PINV1913,"46,431.23"
DBT,ACAS,28/07/2023,REFUNDS,ADVICE,ZAI,PINV1914,"2,160.00"
DBT,ACAS,26/07/2023,PROFESSIONAL FEES,ODHR,MHR INTERNATIONAL UK LTD,PINV1915,"2,736.00"
DBT,ACAS,30/06/2023,PERSONAL EXPENSE,DISPUTE,NAME / DESCRIPTION WITHHELD,EXPS2144,2.7
DBT,ACAS,30/06/2023,PERSONAL EXPENSE,DISPUTE,NAME / DESCRIPTION WITHHELD,EXPS2144,305.55
DBT,ACAS,30/06/2023,PERSONAL EXPENSE,DISPUTE,NAME / DESCRIPTION WITHHELD,EXPS2144,4.5
DBT,ACAS,30/06/2023,PERSONAL EXPENSE,DISPUTE,NAME / DESCRIPTION WITHHELD,EXPS2144,26.79
DBT,ACAS,30/06/2023,PERSONAL EXPENSE,DISPUTE,NAME / DESCRIPTION WITHHELD,EXPS2144,10
DBT,ACAS,30/06/2023,PERSONAL EXPENSE,DISPUTE,NAME / DESCRIPTION WITHHELD,EXPS2144,15
DBT,ACAS,30/06/2023,PERSONAL EXPENSE,DISPUTE,NAME / DESCRIPTION WITHHELD,EXPS2144,20
DBT,ACAS,03/07/2023,PERSONAL EXPENSE,ADVICE,NAME / DESCRIPTION WITHHELD,EXPS2152,210.6
DBT,ACAS,03/07/2023,PERSONAL EXPENSE,ADVICE,NAME / DESCRIPTION WITHHELD,EXPS2152,32.4
DBT,ACAS,03/07/2023,PERSONAL EXPENSE,ADVICE,NAME / DESCRIPTION WITHHELD,EXPS2152,85.5
DBT,ACAS,03/07/2023,PERSONAL EXPENSE,ADVICE,NAME / DESCRIPTION WITHHELD,EXPS2152,70.2
DBT,ACAS,03/07/2023,PERSONAL EXPENSE,ADVICE,NAME / DESCRIPTION WITHHELD,EXPS2152,13.2
DBT,ACAS,03/07/2023,PERSONAL EXPENSE,ADVICE,NAME / DESCRIPTION WITHHELD,EXPS2152,20
DBT,ACAS,03/07/2023,PERSONAL EXPENSE,ADVICE,NAME / DESCRIPTION WITHHELD,EXPS2152,20
DBT,ACAS,03/07/2023,PERSONAL EXPENSE,ADVICE,NAME / DESCRIPTION WITHHELD,EXPS2152,10
DBT,ACAS,03/07/2023,PERSONAL EXPENSE,ADVICE,NAME / DESCRIPTION WITHHELD,EXPS2152,10
DBT,ACAS,03/07/2023,PERSONAL EXPENSE,ADVICE,NAME / DESCRIPTION WITHHELD,EXPS2152,20
DBT,ACAS,03/07/2023,PERSONAL EXPENSE,STRATEGY,NAME / DESCRIPTION WITHHELD,EXPS2157,40.05
DBT,ACAS,03/07/2023,PERSONAL EXPENSE,STRATEGY,NAME / DESCRIPTION WITHHELD,EXPS2157,2.7
DBT,ACAS,03/07/2023,PERSONAL EXPENSE,STRATEGY,NAME / DESCRIPTION WITHHELD,EXPS2157,5
DBT,ACAS,03/07/2023,PERSONAL EXPENSE,STRATEGY,NAME / DESCRIPTION WITHHELD,EXPS2157,25
DBT,ACAS,03/07/2023,PERSONAL EXPENSE,STRATEGY,NAME / DESCRIPTION WITHHELD,EXPS2157,35
DBT,ACAS,03/07/2023,PERSONAL EXPENSE,STRATEGY,NAME / DESCRIPTION WITHHELD,EXPS2157,2.8
DBT,ACAS,03/07/2023,PERSONAL EXPENSE,STRATEGY,NAME / DESCRIPTION WITHHELD,EXPS2157,5
DBT,ACAS,03/07/2023,PERSONAL EXPENSE,STRATEGY,NAME / DESCRIPTION WITHHELD,EXPS2157,35
DBT,ACAS,03/07/2023,PERSONAL EXPENSE,STRATEGY,NAME / DESCRIPTION WITHHELD,EXPS2157,25
DBT,ACAS,03/07/2023,PERSONAL EXPENSE,STRATEGY,NAME / DESCRIPTION WITHHELD,EXPS2157,2.8
DBT,ACAS,03/07/2023,PERSONAL EXPENSE,STRATEGY,NAME / DESCRIPTION WITHHELD,EXPS2157,5
DBT,ACAS,03/07/2023,PERSONAL EXPENSE,STRATEGY,NAME / DESCRIPTION WITHHELD,EXPS2157,35
DBT,ACAS,03/07/2023,PERSONAL EXPENSE,STRATEGY,NAME / DESCRIPTION WITHHELD,EXPS2157,10
DBT,ACAS,03/07/2023,PERSONAL EXPENSE,STRATEGY,NAME / DESCRIPTION WITHHELD,EXPS2157,30
DBT,ACAS,03/07/2023,PERSONAL EXPENSE,STRATEGY,NAME / DESCRIPTION WITHHELD,EXPS2157,2.7
DBT,ACAS,03/07/2023,PERSONAL EXPENSE,STRATEGY,NAME / DESCRIPTION WITHHELD,EXPS2157,8.2
DBT,ACAS,03/07/2023,PERSONAL EXPENSE,STRATEGY,NAME / DESCRIPTION WITHHELD,EXPS2157,5
DBT,ACAS,03/07/2023,PERSONAL EXPENSE,STRATEGY,NAME / DESCRIPTION WITHHELD,EXPS2157,35
DBT,ACAS,03/07/2023,PERSONAL EXPENSE,STRATEGY,NAME / DESCRIPTION WITHHELD,EXPS2157,10
DBT,ACAS,03/07/2023,PERSONAL EXPENSE,STRATEGY,NAME / DESCRIPTION WITHHELD,EXPS2157,10
DBT,ACAS,03/07/2023,PERSONAL EXPENSE,DISPUTE,NAME / DESCRIPTION WITHHELD,EXPS2161,5
DBT,ACAS,03/07/2023,PERSONAL EXPENSE,DISPUTE,NAME / DESCRIPTION WITHHELD,EXPS2161,35
DBT,ACAS,03/07/2023,PERSONAL EXPENSE,DISPUTE,NAME / DESCRIPTION WITHHELD,EXPS2161,10
DBT,ACAS,03/07/2023,PERSONAL EXPENSE,DISPUTE,NAME / DESCRIPTION WITHHELD,EXPS2161,2.5
DBT,ACAS,03/07/2023,PERSONAL EXPENSE,DISPUTE,NAME / DESCRIPTION WITHHELD,EXPS2161,5
DBT,ACAS,03/07/2023,PERSONAL EXPENSE,DISPUTE,NAME / DESCRIPTION WITHHELD,EXPS2161,35
DBT,ACAS,03/07/2023,PERSONAL EXPENSE,DISPUTE,NAME / DESCRIPTION WITHHELD,EXPS2161,10
DBT,ACAS,03/07/2023,PERSONAL EXPENSE,DISPUTE,NAME / DESCRIPTION WITHHELD,EXPS2161,10
DBT,ACAS,03/07/2023,PERSONAL EXPENSE,DISPUTE,NAME / DESCRIPTION WITHHELD,EXPS2161,6.9
DBT,ACAS,03/07/2023,PERSONAL EXPENSE,DISPUTE,NAME / DESCRIPTION WITHHELD,EXPS2161,10
DBT,ACAS,03/07/2023,PERSONAL EXPENSE,DISPUTE,NAME / DESCRIPTION WITHHELD,EXPS2161,10
DBT,ACAS,03/07/2023,PERSONAL EXPENSE,DISPUTE,NAME / DESCRIPTION WITHHELD,EXPS2161,10
DBT,ACAS,03/07/2023,PERSONAL EXPENSE,DISPUTE,NAME / DESCRIPTION WITHHELD,EXPS2161,2.5
DBT,ACAS,03/07/2023,PERSONAL EXPENSE,DISPUTE,NAME / DESCRIPTION WITHHELD,EXPS2161,10
DBT,ACAS,03/07/2023,PERSONAL EXPENSE,DISPUTE,NAME / DESCRIPTION WITHHELD,EXPS2161,10
DBT,ACAS,03/07/2023,PERSONAL EXPENSE,DISPUTE,NAME / DESCRIPTION WITHHELD,EXPS2161,10
DBT,ACAS,03/07/2023,PERSONAL EXPENSE,DISPUTE,NAME / DESCRIPTION WITHHELD,EXPS2161,10
DBT,ACAS,03/07/2023,PERSONAL EXPENSE,DISPUTE,NAME / DESCRIPTION WITHHELD,EXPS2161,2.8
DBT,ACAS,03/07/2023,PERSONAL EXPENSE,DISPUTE,NAME / DESCRIPTION WITHHELD,EXPS2161,5
DBT,ACAS,03/07/2023,PERSONAL EXPENSE,DISPUTE,NAME / DESCRIPTION WITHHELD,EXPS2161,35
DBT,ACAS,03/07/2023,PERSONAL EXPENSE,DISPUTE,NAME / DESCRIPTION WITHHELD,EXPS2161,10
DBT,ACAS,03/07/2023,PERSONAL EXPENSE,DISPUTE,NAME / DESCRIPTION WITHHELD,EXPS2161,2.8
DBT,ACAS,03/07/2023,PERSONAL EXPENSE,DISPUTE,NAME / DESCRIPTION WITHHELD,EXPS2161,10
DBT,ACAS,03/07/2023,PERSONAL EXPENSE,DISPUTE,NAME / DESCRIPTION WITHHELD,EXPS2161,2.8
DBT,ACAS,03/07/2023,PERSONAL EXPENSE,DISPUTE,NAME / DESCRIPTION WITHHELD,EXPS2161,6.9
DBT,ACAS,03/07/2023,PERSONAL EXPENSE,DISPUTE,NAME / DESCRIPTION WITHHELD,EXPS2161,10
DBT,ACAS,03/07/2023,PERSONAL EXPENSE,DISPUTE,NAME / DESCRIPTION WITHHELD,EXPS2161,8.97
DBT,ACAS,03/07/2023,PERSONAL EXPENSE,DISPUTE,NAME / DESCRIPTION WITHHELD,EXPS2161,5
DBT,ACAS,03/07/2023,PERSONAL EXPENSE,DISPUTE,NAME / DESCRIPTION WITHHELD,EXPS2161,35
DBT,ACAS,03/07/2023,PERSONAL EXPENSE,DISPUTE,NAME / DESCRIPTION WITHHELD,EXPS2161,10
DBT,ACAS,05/07/2023,PERSONAL EXPENSE,ADVICE,NAME / DESCRIPTION WITHHELD,EXPS2167,466.65
DBT,ACAS,05/07/2023,PERSONAL EXPENSE,ADVICE,NAME / DESCRIPTION WITHHELD,EXPS2167,6.85
DBT,ACAS,05/07/2023,PERSONAL EXPENSE,ADVICE,NAME / DESCRIPTION WITHHELD,EXPS2167,20
DBT,ACAS,05/07/2023,PERSONAL EXPENSE,ADVICE,NAME / DESCRIPTION WITHHELD,EXPS2167,40
DBT,ACAS,05/07/2023,PERSONAL EXPENSE,ADVICE,NAME / DESCRIPTION WITHHELD,EXPS2167,30
DBT,ACAS,05/07/2023,PERSONAL EXPENSE,ADVICE,NAME / DESCRIPTION WITHHELD,EXPS2167,20
DBT,ACAS,05/07/2023,PERSONAL EXPENSE,ADVICE,NAME / DESCRIPTION WITHHELD,EXPS2167,140
DBT,ACAS,06/07/2023,PERSONAL EXPENSE,DISPUTE,NAME / DESCRIPTION WITHHELD,EXPS2172,269.55
DBT,ACAS,06/07/2023,PERSONAL EXPENSE,DISPUTE,NAME / DESCRIPTION WITHHELD,EXPS2172,5.2
DBT,ACAS,06/07/2023,PERSONAL EXPENSE,DISPUTE,NAME / DESCRIPTION WITHHELD,EXPS2172,102
DBT,ACAS,06/07/2023,PERSONAL EXPENSE,DISPUTE,NAME / DESCRIPTION WITHHELD,EXPS2172,30
DBT,ACAS,06/07/2023,PERSONAL EXPENSE,DISPUTE,NAME / DESCRIPTION WITHHELD,EXPS2172,50
DBT,ACAS,12/07/2023,PERSONAL EXPENSE,DISPUTE,NAME / DESCRIPTION WITHHELD,EXPS2201,523.8
DBT,ACAS,12/07/2023,PERSONAL EXPENSE,DISPUTE,NAME / DESCRIPTION WITHHELD,EXPS2201,15
DBT,ACAS,12/07/2023,PERSONAL EXPENSE,DISPUTE,NAME / DESCRIPTION WITHHELD,EXPS2201,20
DBT,ACAS,12/07/2023,PERSONAL EXPENSE,DISPUTE,NAME / DESCRIPTION WITHHELD,EXPS2201,10
DBT,ACAS,12/07/2023,PERSONAL EXPENSE,DISPUTE,NAME / DESCRIPTION WITHHELD,EXPS2201,105
DBT,ACAS,12/07/2023,PERSONAL EXPENSE,DISPUTE,NAME / DESCRIPTION WITHHELD,EXPS2201,10
DBT,ACAS,12/07/2023,PERSONAL EXPENSE,DISPUTE,NAME / DESCRIPTION WITHHELD,EXPS2201,12
DBT,ACAS,13/07/2023,PERSONAL EXPENSE,ODHR,NAME / DESCRIPTION WITHHELD,EXPS2205,34.2
DBT,ACAS,13/07/2023,PERSONAL EXPENSE,ODHR,NAME / DESCRIPTION WITHHELD,EXPS2205,3.8
DBT,ACAS,13/07/2023,PERSONAL EXPENSE,ODHR,NAME / DESCRIPTION WITHHELD,EXPS2205,10
DBT,ACAS,13/07/2023,PERSONAL EXPENSE,ODHR,NAME / DESCRIPTION WITHHELD,EXPS2205,110.25
DBT,ACAS,13/07/2023,PERSONAL EXPENSE,ODHR,NAME / DESCRIPTION WITHHELD,EXPS2205,8
DBT,ACAS,13/07/2023,PERSONAL EXPENSE,ODHR,NAME / DESCRIPTION WITHHELD,EXPS2205,10
DBT,ACAS,13/07/2023,PERSONAL EXPENSE,ODHR,NAME / DESCRIPTION WITHHELD,EXPS2205,10
DBT,ACAS,13/07/2023,PERSONAL EXPENSE,ODHR,NAME / DESCRIPTION WITHHELD,EXPS2205,29.8
DBT,ACAS,13/07/2023,PERSONAL EXPENSE,ODHR,NAME / DESCRIPTION WITHHELD,EXPS2205,8.95
DBT,ACAS,13/07/2023,PERSONAL EXPENSE,ODHR,NAME / DESCRIPTION WITHHELD,EXPS2205,5
DBT,ACAS,13/07/2023,PERSONAL EXPENSE,ODHR,NAME / DESCRIPTION WITHHELD,EXPS2205,5
DBT,ACAS,13/07/2023,PERSONAL EXPENSE,ODHR,NAME / DESCRIPTION WITHHELD,EXPS2205,25
DBT,ACAS,13/07/2023,PERSONAL EXPENSE,ODHR,NAME / DESCRIPTION WITHHELD,EXPS2205,35
DBT,ACAS,13/07/2023,PERSONAL EXPENSE,ODHR,NAME / DESCRIPTION WITHHELD,EXPS2205,25.03
DBT,ACAS,13/07/2023,PERSONAL EXPENSE,ODHR,NAME / DESCRIPTION WITHHELD,EXPS2205,14
DBT,ACAS,13/07/2023,PERSONAL EXPENSE,ODHR,NAME / DESCRIPTION WITHHELD,EXPS2205,10
DBT,ACAS,13/07/2023,PERSONAL EXPENSE,ODHR,NAME / DESCRIPTION WITHHELD,EXPS2205,10
DBT,ACAS,17/07/2023,PERSONAL EXPENSE,ADVICE,NAME / DESCRIPTION WITHHELD,EXPS2220,216
DBT,ACAS,17/07/2023,PERSONAL EXPENSE,ADVICE,NAME / DESCRIPTION WITHHELD,EXPS2220,22.5
DBT,ACAS,17/07/2023,PERSONAL EXPENSE,ADVICE,NAME / DESCRIPTION WITHHELD,EXPS2220,30
DBT,ACAS,17/07/2023,PERSONAL EXPENSE,ADVICE,NAME / DESCRIPTION WITHHELD,EXPS2220,5
DBT,ACAS,17/07/2023,PERSONAL EXPENSE,ADVICE,NAME / DESCRIPTION WITHHELD,EXPS2220,35
DBT,ACAS,20/07/2023,PERSONAL EXPENSE,ADVICE,NAME / DESCRIPTION WITHHELD,EXPS2221,496.8
DBT,ACAS,20/07/2023,PERSONAL EXPENSE,ADVICE,NAME / DESCRIPTION WITHHELD,EXPS2221,20
DBT,ACAS,20/07/2023,PERSONAL EXPENSE,ADVICE,NAME / DESCRIPTION WITHHELD,EXPS2221,5
DBT,ACAS,20/07/2023,PERSONAL EXPENSE,ADVICE,NAME / DESCRIPTION WITHHELD,EXPS2221,25
DBT,ACAS,20/07/2023,PERSONAL EXPENSE,ADVICE,NAME / DESCRIPTION WITHHELD,EXPS2221,35
DBT,ACAS,20/07/2023,PERSONAL EXPENSE,ADVICE,NAME / DESCRIPTION WITHHELD,EXPS2221,20
DBT,ACAS,21/07/2023,PERSONAL EXPENSE,STRATEGY,NAME / DESCRIPTION WITHHELD,EXPS2227,13.05
DBT,ACAS,21/07/2023,PERSONAL EXPENSE,STRATEGY,NAME / DESCRIPTION WITHHELD,EXPS2227,57
DBT,ACAS,21/07/2023,PERSONAL EXPENSE,STRATEGY,NAME / DESCRIPTION WITHHELD,EXPS2227,9
DBT,ACAS,21/07/2023,PERSONAL EXPENSE,STRATEGY,NAME / DESCRIPTION WITHHELD,EXPS2227,5
DBT,ACAS,21/07/2023,PERSONAL EXPENSE,STRATEGY,NAME / DESCRIPTION WITHHELD,EXPS2227,10
DBT,ACAS,21/07/2023,PERSONAL EXPENSE,STRATEGY,NAME / DESCRIPTION WITHHELD,EXPS2227,35
DBT,ACAS,21/07/2023,PERSONAL EXPENSE,STRATEGY,NAME / DESCRIPTION WITHHELD,EXPS2227,10
DBT,ACAS,21/07/2023,PERSONAL EXPENSE,STRATEGY,NAME / DESCRIPTION WITHHELD,EXPS2227,5.85
DBT,ACAS,21/07/2023,PERSONAL EXPENSE,STRATEGY,NAME / DESCRIPTION WITHHELD,EXPS2227,2.7
DBT,ACAS,21/07/2023,PERSONAL EXPENSE,STRATEGY,NAME / DESCRIPTION WITHHELD,EXPS2227,5
DBT,ACAS,21/07/2023,PERSONAL EXPENSE,STRATEGY,NAME / DESCRIPTION WITHHELD,EXPS2227,35
DBT,ACAS,21/07/2023,PERSONAL EXPENSE,STRATEGY,NAME / DESCRIPTION WITHHELD,EXPS2227,5
DBT,ACAS,21/07/2023,PERSONAL EXPENSE,STRATEGY,NAME / DESCRIPTION WITHHELD,EXPS2227,35
DBT,ACAS,21/07/2023,PERSONAL EXPENSE,STRATEGY,NAME / DESCRIPTION WITHHELD,EXPS2227,4.5
DBT,ACAS,21/07/2023,PERSONAL EXPENSE,STRATEGY,NAME / DESCRIPTION WITHHELD,EXPS2227,10
DBT,ACAS,21/07/2023,PERSONAL EXPENSE,STRATEGY,NAME / DESCRIPTION WITHHELD,EXPS2227,25.03
DBT,ACAS,21/07/2023,PERSONAL EXPENSE,STRATEGY,NAME / DESCRIPTION WITHHELD,EXPS2227,4.5
DBT,ACAS,21/07/2023,PERSONAL EXPENSE,STRATEGY,NAME / DESCRIPTION WITHHELD,EXPS2227,5
DBT,ACAS,21/07/2023,PERSONAL EXPENSE,STRATEGY,NAME / DESCRIPTION WITHHELD,EXPS2227,10
DBT,ACAS,21/07/2023,PERSONAL EXPENSE,STRATEGY,NAME / DESCRIPTION WITHHELD,EXPS2227,35
DBT,ACAS,21/07/2023,PERSONAL EXPENSE,STRATEGY,NAME / DESCRIPTION WITHHELD,EXPS2227,10
DBT,ACAS,21/07/2023,PERSONAL EXPENSE,STRATEGY,NAME / DESCRIPTION WITHHELD,EXPS2227,9
DBT,ACAS,21/07/2023,PERSONAL EXPENSE,STRATEGY,NAME / DESCRIPTION WITHHELD,EXPS2227,2.7
DBT,ACAS,21/07/2023,PERSONAL EXPENSE,STRATEGY,NAME / DESCRIPTION WITHHELD,EXPS2227,4.2
DBT,ACAS,21/07/2023,PERSONAL EXPENSE,STRATEGY,NAME / DESCRIPTION WITHHELD,EXPS2227,25
DBT,ACAS,21/07/2023,PERSONAL EXPENSE,STRATEGY,NAME / DESCRIPTION WITHHELD,EXPS2227,9
DBT,ACAS,21/07/2023,PERSONAL EXPENSE,STRATEGY,NAME / DESCRIPTION WITHHELD,EXPS2227,5.6
DBT,ACAS,21/07/2023,PERSONAL EXPENSE,STRATEGY,NAME / DESCRIPTION WITHHELD,EXPS2227,4.2
DBT,ACAS,21/07/2023,PERSONAL EXPENSE,STRATEGY,NAME / DESCRIPTION WITHHELD,EXPS2227,10
DBT,ACAS,21/07/2023,PERSONAL EXPENSE,STRATEGY,NAME / DESCRIPTION WITHHELD,EXPS2227,10
DBT,ACAS,21/07/2023,PERSONAL EXPENSE,STRATEGY,NAME / DESCRIPTION WITHHELD,EXPS2227,7.2
DBT,ACAS,21/07/2023,PERSONAL EXPENSE,STRATEGY,NAME / DESCRIPTION WITHHELD,EXPS2227,2.7
DBT,ACAS,21/07/2023,PERSONAL EXPENSE,STRATEGY,NAME / DESCRIPTION WITHHELD,EXPS2227,10
DBT,ACAS,21/07/2023,PERSONAL EXPENSE,STRATEGY,NAME / DESCRIPTION WITHHELD,EXPS2227,10
DBT,ACAS,21/07/2023,PERSONAL EXPENSE,STRATEGY,NAME / DESCRIPTION WITHHELD,EXPS2227,70
DBT,ACAS,27/07/2023,PERSONAL EXPENSE,DISPUTE,NAME / DESCRIPTION WITHHELD,EXPS2253,280
DBT,ACAS,27/07/2023,PERSONAL EXPENSE,STRATEGY,NAME / DESCRIPTION WITHHELD,EXPS2256,12
DBT,ACAS,27/07/2023,PERSONAL EXPENSE,STRATEGY,NAME / DESCRIPTION WITHHELD,EXPS2256,5
DBT,ACAS,27/07/2023,PERSONAL EXPENSE,STRATEGY,NAME / DESCRIPTION WITHHELD,EXPS2256,10
DBT,ACAS,27/07/2023,PERSONAL EXPENSE,STRATEGY,NAME / DESCRIPTION WITHHELD,EXPS2256,35
DBT,ACAS,27/07/2023,PERSONAL EXPENSE,STRATEGY,NAME / DESCRIPTION WITHHELD,EXPS2256,10
DBT,ACAS,27/07/2023,PERSONAL EXPENSE,STRATEGY,NAME / DESCRIPTION WITHHELD,EXPS2256,35.1
DBT,ACAS,27/07/2023,PERSONAL EXPENSE,STRATEGY,NAME / DESCRIPTION WITHHELD,EXPS2256,5
DBT,ACAS,27/07/2023,PERSONAL EXPENSE,STRATEGY,NAME / DESCRIPTION WITHHELD,EXPS2256,35
DBT,ACAS,27/07/2023,PERSONAL EXPENSE,STRATEGY,NAME / DESCRIPTION WITHHELD,EXPS2256,10
DBT,ACAS,27/07/2023,PERSONAL EXPENSE,STRATEGY,NAME / DESCRIPTION WITHHELD,EXPS2256,10
DBT,ACAS,27/07/2023,PERSONAL EXPENSE,STRATEGY,NAME / DESCRIPTION WITHHELD,EXPS2256,164.6
DBT,ACAS,27/07/2023,PERSONAL EXPENSE,STRATEGY,NAME / DESCRIPTION WITHHELD,EXPS2256,10
DBT,ACAS,27/07/2023,PERSONAL EXPENSE,ADVICE,NAME / DESCRIPTION WITHHELD,EXPS2257,209.7
DBT,ACAS,27/07/2023,PERSONAL EXPENSE,ADVICE,NAME / DESCRIPTION WITHHELD,EXPS2257,35
DBT,ACAS,27/07/2023,PERSONAL EXPENSE,ADVICE,NAME / DESCRIPTION WITHHELD,EXPS2257,43.56
